[Event "Titled Tuesday Blitz July 11 Early 2023"]
[White "Nikologorsky, Matfei"]
[Black "Kev4444444444"]
[WhiteFideId "24102474"]
[WhiteElo "2424"]
[BlackElo "2225"]
[Result "0-1"]
[Round "10"]
[TimeControl "180+2"]
[Date "2023.07.11"]
[WhiteClock "0:00:00"]
[BlackClock "0:00:11"]
[Board "115"]

1. e4 {[%clk 0:03:00]}  c5 {[%clk 0:02:54]} 2. Nf3 {[%clk 0:03:00]}  g6 {[%clk 0:02:54]} 3. d4 {[%clk 0:03:01]}  cxd4 {[%clk 0:02:54]} 4. Nxd4 {[%clk 0:03:00]}  Bg7 {[%clk 0:02:54]} 5. Nc3 {[%clk 0:03:01]}  Nc6 {[%clk 0:02:54]} 6. Be3 {[%clk 0:03:01]}  Nf6 {[%clk 0:02:54]} 7. Nxc6 {[%clk 0:03:01]}  dxc6 {[%clk 0:02:48]} 8. Qxd8+ {[%clk 0:03:00]}  Kxd8 {[%clk 0:02:48]} 9. O-O-O+ {[%clk 0:02:52]}  Bd7 {[%clk 0:02:45]} 10. f3 {[%clk 0:02:47]}  e5 {[%clk 0:02:44]} 11. Bc4 {[%clk 0:02:41]}  Ke8 {[%clk 0:02:34]} 12. a4 {[%clk 0:02:35]}  Bf8 {[%clk 0:02:14]} 13. Rd3 {[%clk 0:02:27]}  Be6 {[%clk 0:02:07]} 14. Bxe6 {[%clk 0:02:25]}  fxe6 {[%clk 0:02:07]} 15. Rhd1 {[%clk 0:02:22]}  h6 {[%clk 0:02:04]} 16. Nb1 {[%clk 0:02:03]}  b5 {[%clk 0:01:44]} 17. Nd2 {[%clk 0:01:46]}  Rh7 {[%clk 0:01:41]} 18. Rc3 {[%clk 0:01:28]}  Re7 {[%clk 0:00:53]} 19. Rxc6 {[%clk 0:01:26]}  bxa4 {[%clk 0:00:54]} 20. Nc4 {[%clk 0:01:26]}  Kf7 {[%clk 0:00:47]} 21. Nxe5+ {[%clk 0:01:24]}  Kg7 {[%clk 0:00:47]} 22. Rd4 {[%clk 0:01:06]}  a3 {[%clk 0:00:41]} 23. bxa3 {[%clk 0:01:05]}  Rb7 {[%clk 0:00:41]} 24. Ra4 {[%clk 0:01:02]}  a5 {[%clk 0:00:31]} 25. Bc5 {[%clk 0:00:57]}  Bxc5 {[%clk 0:00:19]} 26. Rxc5 {[%clk 0:00:57]}  Rba7 {[%clk 0:00:18]} 27. Nc6 {[%clk 0:00:52]}  Rc7 {[%clk 0:00:18]} 28. Rac4 {[%clk 0:00:34]}  Rac8 {[%clk 0:00:18]} 29. Kd2 {[%clk 0:00:24]}  Nd7 {[%clk 0:00:18]} 30. Rxa5 {[%clk 0:00:24]}  Rxc6 {[%clk 0:00:18]} 31. Rxc6 {[%clk 0:00:25]}  Rxc6 {[%clk 0:00:19]} 32. Ra7 {[%clk 0:00:25]}  Rd6+ {[%clk 0:00:19]} 33. Ke3 {[%clk 0:00:25]}  e5 {[%clk 0:00:18]} 34. f4 {[%clk 0:00:24]}  exf4+ {[%clk 0:00:18]} 35. Kxf4 {[%clk 0:00:24]}  Kf6 {[%clk 0:00:18]} 36. Ra8 {[%clk 0:00:19]}  Ne5 {[%clk 0:00:18]} 37. Rf8+ {[%clk 0:00:19]}  Nf7 {[%clk 0:00:16]} 38. Rc8 {[%clk 0:00:18]}  Ra6 {[%clk 0:00:16]} 39. Rc3 {[%clk 0:00:17]}  Ne5 {[%clk 0:00:15]} 40. h3 {[%clk 0:00:16]}  g5+ {[%clk 0:00:15]} 41. Ke3 {[%clk 0:00:15]}  Ng6 {[%clk 0:00:16]} 42. Kd4 {[%clk 0:00:12]}  Ke6 {[%clk 0:00:15]} 43. Kc5 {[%clk 0:00:09]}  Ke5 {[%clk 0:00:14]} 44. Kb5 {[%clk 0:00:10]}  Ra8 {[%clk 0:00:14]} 45. a4 {[%clk 0:00:10]}  Kxe4 {[%clk 0:00:14]} 46. a5 {[%clk 0:00:10]}  Ne5 {[%clk 0:00:14]} 47. a6 {[%clk 0:00:09]}  Kd4 {[%clk 0:00:14]} 48. Rc7 {[%clk 0:00:09]}  Rb8+ {[%clk 0:00:14]} 49. Ka4 {[%clk 0:00:05]}  Kd5 {[%clk 0:00:11]} 50. a7 {[%clk 0:00:05]}  Ra8 {[%clk 0:00:12]} 51. Kb5 {[%clk 0:00:05]}  Kd6 {[%clk 0:00:11]} 52. Kb6 {[%clk 0:00:05]}  Nd7+ {[%clk 0:00:10]} 53. Kb7 {[%clk 0:00:05]}  Rxa7+ {[%clk 0:00:11]} 54. Kxa7 {[%clk 0:00:04]}  Kxc7 {[%clk 0:00:11]} 55. Ka6 {[%clk 0:00:02]}  Kc6 {[%clk 0:00:12]} 56. Ka7 {[%clk 0:00:02]}  Ne5 {[%clk 0:00:11]} 57. Kb8 {[%clk 0:00:02]}  Ng6 {[%clk 0:00:11]} 58. g3 {[%clk 0:00:00]}  Ne7 {[%clk 0:00:11]} 0-1


[Site "https://www.chess.com"]

[Event "Titled Tuesday Blitz July 11 Early 2023"]
[White "whiteglovethief"]
[Black "Sava, Christiansen-Danut-Eugen"]
[BlackFideId "1210114"]
[WhiteElo "2421"]
[BlackElo "2076"]
[Result "0-1"]
[Round "10"]
[TimeControl "180+2"]
[Date "2023.07.11"]
[WhiteClock "0:00:38"]
[BlackClock "0:00:53"]
[Board "116"]

1. d4 {[%clk 0:03:00]}  Nf6 {[%clk 0:02:58]} 2. c4 {[%clk 0:03:00]}  e6 {[%clk 0:02:58]} 3. Nf3 {[%clk 0:02:59]}  Bb4+ {[%clk 0:02:57]} 4. Bd2 {[%clk 0:02:59]}  Qe7 {[%clk 0:02:56]} 5. g3 {[%clk 0:02:58]}  Nc6 {[%clk 0:02:57]} 6. Bg2 {[%clk 0:02:58]}  Bxd2+ {[%clk 0:02:56]} 7. Nbxd2 {[%clk 0:02:58]}  d6 {[%clk 0:02:57]} 8. O-O {[%clk 0:02:57]}  e5 {[%clk 0:02:57]} 9. d5 {[%clk 0:02:58]}  Nb8 {[%clk 0:02:56]} 10. e4 {[%clk 0:02:58]}  O-O {[%clk 0:02:56]} 11. Ne1 {[%clk 0:02:59]}  a5 {[%clk 0:02:57]} 12. Nd3 {[%clk 0:02:59]}  Na6 {[%clk 0:02:57]} 13. f4 {[%clk 0:02:57]}  Bg4 {[%clk 0:02:55]} 14. Qc2 {[%clk 0:02:54]}  exf4 {[%clk 0:02:39]} 15. gxf4 {[%clk 0:02:51]}  Nb4 {[%clk 0:02:39]} 16. Nxb4 {[%clk 0:02:50]}  axb4 {[%clk 0:02:40]} 17. Rae1 {[%clk 0:02:39]}  Nd7 {[%clk 0:02:40]} 18. e5 {[%clk 0:02:28]}  dxe5 {[%clk 0:02:35]} 19. fxe5 {[%clk 0:02:28]}  Nxe5 {[%clk 0:02:36]} 20. h3 {[%clk 0:02:17]}  Bd7 {[%clk 0:02:30]} 21. c5 {[%clk 0:02:14]}  f6 {[%clk 0:02:28]} 22. Nc4 {[%clk 0:02:11]}  Qxc5+ {[%clk 0:02:26]} 23. Ne3 {[%clk 0:02:06]}  Qxc2 {[%clk 0:02:25]} 24. Nxc2 {[%clk 0:02:07]}  Rxa2 {[%clk 0:02:26]} 25. Nxb4 {[%clk 0:02:07]}  Rxb2 {[%clk 0:02:25]} 26. Rb1 {[%clk 0:01:59]}  Rxb1 {[%clk 0:02:25]} 27. Rxb1 {[%clk 0:02:00]}  Ra8 {[%clk 0:02:25]} 28. Nc2 {[%clk 0:01:58]}  Ra2 {[%clk 0:02:24]} 29. Nd4 {[%clk 0:01:56]}  b6 {[%clk 0:02:23]} 30. d6 {[%clk 0:01:56]}  c5 {[%clk 0:02:17]} 31. Bd5+ {[%clk 0:01:55]}  Kf8 {[%clk 0:01:59]} 32. Bxa2 {[%clk 0:01:56]}  cxd4 {[%clk 0:01:58]} 33. Rxb6 {[%clk 0:01:54]}  g5 {[%clk 0:01:46]} 34. Rb8+ {[%clk 0:01:49]}  Kg7 {[%clk 0:01:46]} 35. Rg8+ {[%clk 0:01:46]}  Kh6 {[%clk 0:01:46]} 36. Bb1 {[%clk 0:01:44]}  Bxh3 {[%clk 0:01:42]} 37. Rh8 {[%clk 0:01:38]}  d3 {[%clk 0:01:42]} 38. Kf2 {[%clk 0:01:35]}  Bg4 {[%clk 0:01:42]} 39. Ke3 {[%clk 0:01:35]}  Kg7 {[%clk 0:01:38]} 40. Rb8 {[%clk 0:01:30]}  Bf5 {[%clk 0:01:36]} 41. Rb7+ {[%clk 0:01:22]}  Kf8 {[%clk 0:01:34]} 42. Ba2 {[%clk 0:01:11]}  Ke8 {[%clk 0:01:28]} 43. Bb3 {[%clk 0:01:04]}  Kd8 {[%clk 0:01:07]} 44. Ba4 {[%clk 0:01:02]}  h5 {[%clk 0:01:07]} 45. Rb8+ {[%clk 0:00:58]}  Bc8 {[%clk 0:01:07]} 46. Bb5 {[%clk 0:00:52]}  Nd7 {[%clk 0:00:53]} 47. Ba6 {[%clk 0:00:38]}  Nxb8 {[%clk 0:00:53]} 0-1


[Site "https://www.chess.com"]

[Event "Titled Tuesday Blitz July 11 Early 2023"]
[White "Nagare Kaivalya Sandip"]
[Black "Villuendas Valero, Adrian"]
[WhiteFideId "25957929"]
[BlackFideId "2262460"]
[WhiteElo "2630"]
[BlackElo "2378"]
[Result "1-0"]
[Round "10"]
[TimeControl "180+2"]
[Date "2023.07.11"]
[WhiteClock "0:00:58"]
[BlackClock "0:00:25"]
[Board "117"]

1. e4 {[%clk 0:03:00]}  e6 {[%clk 0:02:58]} 2. d4 {[%clk 0:03:00]}  d5 {[%clk 0:02:59]} 3. Nc3 {[%clk 0:03:00]}  Bb4 {[%clk 0:02:57]} 4. e5 {[%clk 0:03:00]}  c5 {[%clk 0:02:56]} 5. a3 {[%clk 0:03:01]}  Bxc3+ {[%clk 0:02:57]} 6. bxc3 {[%clk 0:03:02]}  Qa5 {[%clk 0:02:56]} 7. Bd2 {[%clk 0:03:01]}  Qa4 {[%clk 0:02:56]} 8. Nf3 {[%clk 0:03:01]}  b6 {[%clk 0:02:55]} 9. h4 {[%clk 0:02:59]}  Ba6 {[%clk 0:02:54]} 10. Bxa6 {[%clk 0:02:58]}  Nxa6 {[%clk 0:02:53]} 11. O-O {[%clk 0:02:58]}  Ne7 {[%clk 0:02:49]} 12. h5 {[%clk 0:02:49]}  h6 {[%clk 0:02:45]} 13. dxc5 {[%clk 0:02:35]}  Nxc5 {[%clk 0:02:39]} 14. Nd4 {[%clk 0:02:34]}  O-O-O {[%clk 0:02:27]} 15. Rb1 {[%clk 0:02:31]}  Ne4 {[%clk 0:02:21]} 16. Rb4 {[%clk 0:02:28]}  Qd7 {[%clk 0:02:13]} 17. Nb5 {[%clk 0:02:12]}  Nc6 {[%clk 0:02:07]} 18. Ra4 {[%clk 0:02:05]}  Na5 {[%clk 0:02:05]} 19. Qe2 {[%clk 0:01:41]}  Nxd2 {[%clk 0:01:53]} 20. Nd6+ {[%clk 0:01:40]}  Kb8 {[%clk 0:01:53]} 21. Rxa5 {[%clk 0:01:38]}  Nxf1 {[%clk 0:01:39]} 22. Ra6 {[%clk 0:01:23]}  f6 {[%clk 0:01:33]} 23. Qxf1 {[%clk 0:01:19]}  fxe5 {[%clk 0:01:31]} 24. Nb5 {[%clk 0:01:20]}  Rc8 {[%clk 0:01:19]} 25. Rxa7 {[%clk 0:01:19]}  Qxa7 {[%clk 0:01:15]} 26. Nxa7 {[%clk 0:01:19]}  Kxa7 {[%clk 0:01:16]} 27. Qb5 {[%clk 0:01:18]}  Rc7 {[%clk 0:01:12]} 28. c4 {[%clk 0:01:17]}  Rd8 {[%clk 0:01:04]} 29. cxd5 {[%clk 0:01:14]}  exd5 {[%clk 0:01:03]} 30. a4 {[%clk 0:01:11]}  Rc5 {[%clk 0:00:56]} 31. Qb4 {[%clk 0:01:05]}  d4 {[%clk 0:00:51]} 32. a5 {[%clk 0:01:03]}  Rcd5 {[%clk 0:00:28]} 33. Qxb6+ {[%clk 0:01:00]}  Ka8 {[%clk 0:00:27]} 34. Qc6+ {[%clk 0:00:59]}  Ka7 {[%clk 0:00:26]} 35. Qc7+ {[%clk 0:00:58]}  Ka6 {[%clk 0:00:25]} 36. Qb6# {[%clk 0:00:58]} 1-0


[Site "https://www.chess.com"]

[Event "Titled Tuesday Blitz July 11 Early 2023"]
[White "GAO"]
[Black "Janaszak, Dawid"]
[BlackFideId "1119206"]
[WhiteElo "2377"]
[BlackElo "2550"]
[Result "0-1"]
[Round "10"]
[TimeControl "180+2"]
[Date "2023.07.11"]
[WhiteClock "0:00:00"]
[BlackClock "0:00:40"]
[Board "118"]

1. e4 {[%clk 0:03:00]}  g6 {[%clk 0:02:57]} 2. d4 {[%clk 0:03:00]}  Bg7 {[%clk 0:02:57]} 3. Nc3 {[%clk 0:03:01]}  a6 {[%clk 0:02:56]} 4. Bg5 {[%clk 0:03:00]}  b5 {[%clk 0:02:56]} 5. a4 {[%clk 0:02:58]}  b4 {[%clk 0:02:55]} 6. Nd5 {[%clk 0:02:59]}  Bb7 {[%clk 0:02:51]} 7. Bd3 {[%clk 0:02:48]}  Bxd4 {[%clk 0:02:48]} 8. Nxb4 {[%clk 0:02:44]}  c5 {[%clk 0:02:38]} 9. c3 {[%clk 0:02:39]}  Bxf2+ {[%clk 0:02:35]} 10. Kxf2 {[%clk 0:02:40]}  cxb4 {[%clk 0:02:36]} 11. cxb4 {[%clk 0:02:38]}  Nf6 {[%clk 0:02:35]} 12. Bxf6 {[%clk 0:01:49]}  Qb6+ {[%clk 0:02:34]} 13. Ke1 {[%clk 0:01:42]}  Qxf6 {[%clk 0:02:30]} 14. Nf3 {[%clk 0:01:43]}  Qxb2 {[%clk 0:02:27]} 15. Rb1 {[%clk 0:01:40]}  Qxg2 {[%clk 0:02:22]} 16. Rg1 {[%clk 0:01:33]}  Qh3 {[%clk 0:02:22]} 17. Kf2 {[%clk 0:01:24]}  O-O {[%clk 0:02:17]} 18. Rg3 {[%clk 0:01:24]}  Qh6 {[%clk 0:02:11]} 19. Kg2 {[%clk 0:01:05]}  Nc6 {[%clk 0:02:11]} 20. Rh3 {[%clk 0:01:05]}  Qg7 {[%clk 0:02:09]} 21. b5 {[%clk 0:01:04]}  axb5 {[%clk 0:02:08]} 22. axb5 {[%clk 0:01:03]}  Ne5 {[%clk 0:02:06]} 23. Ng5 {[%clk 0:00:54]}  Ra2+ {[%clk 0:02:03]} 24. Kg1 {[%clk 0:00:52]}  h6 {[%clk 0:01:58]} 25. Nf3 {[%clk 0:00:50]}  Nxd3 {[%clk 0:01:29]} 26. Qxd3 {[%clk 0:00:48]}  Ra1 {[%clk 0:01:15]} 27. Rxa1 {[%clk 0:00:38]}  Qxa1+ {[%clk 0:01:16]} 28. Kg2 {[%clk 0:00:38]}  Kg7 {[%clk 0:01:11]} 29. Qe3 {[%clk 0:00:35]}  Qb2+ {[%clk 0:01:04]} 30. Kg3 {[%clk 0:00:34]}  Rh8 {[%clk 0:00:59]} 31. Nd4 {[%clk 0:00:24]}  e5 {[%clk 0:01:00]} 32. Nf3 {[%clk 0:00:19]}  d6 {[%clk 0:00:58]} 33. Qd3 {[%clk 0:00:17]}  d5 {[%clk 0:00:50]} 34. exd5 {[%clk 0:00:15]}  f5 {[%clk 0:00:51]} 35. Qc4 {[%clk 0:00:14]}  Rc8 {[%clk 0:00:46]} 36. Qh4 {[%clk 0:00:14]}  f4+ {[%clk 0:00:45]} 37. Kg4 {[%clk 0:00:10]}  h5+ {[%clk 0:00:44]} 38. Kg5 {[%clk 0:00:07]}  Rf8 {[%clk 0:00:43]} 39. Nd4 {[%clk 0:00:00]}  Qxd4 {[%clk 0:00:40]} 0-1


[Site "https://www.chess.com"]

[Event "Titled Tuesday Blitz July 11 Early 2023"]
[White "Mayaud, Raphael"]
[Black "Girya, Olga"]
[WhiteFideId "627151"]
[BlackFideId "4195752"]
[WhiteElo "2377"]
[BlackElo "2540"]
[Result "0-1"]
[Round "10"]
[TimeControl "180+2"]
[Date "2023.07.11"]
[WhiteClock "0:00:11"]
[BlackClock "0:00:28"]
[Board "119"]

1. d4 {[%clk 0:03:00]}  Nf6 {[%clk 0:02:59]} 2. Bg5 {[%clk 0:03:00]}  d5 {[%clk 0:02:58]} 3. Bxf6 {[%clk 0:03:00]}  gxf6 {[%clk 0:02:57]} 4. c4 {[%clk 0:03:00]}  dxc4 {[%clk 0:02:48]} 5. e3 {[%clk 0:02:59]}  e5 {[%clk 0:02:44]} 6. Bxc4 {[%clk 0:02:57]}  Nc6 {[%clk 0:02:21]} 7. Ne2 {[%clk 0:01:42]}  Rg8 {[%clk 0:02:09]} 8. O-O {[%clk 0:01:36]}  Bd6 {[%clk 0:01:48]} 9. Ng3 {[%clk 0:01:27]}  Bg4 {[%clk 0:01:26]} 10. Qb3 {[%clk 0:01:23]}  Na5 {[%clk 0:01:25]} 11. Bxf7+ {[%clk 0:01:02]}  Kf8 {[%clk 0:01:23]} 12. Qc3 {[%clk 0:00:54]}  Kxf7 {[%clk 0:01:19]} 13. Qxa5 {[%clk 0:00:53]}  h5 {[%clk 0:01:07]} 14. h3 {[%clk 0:00:54]}  Be6 {[%clk 0:00:35]} 15. d5 {[%clk 0:00:52]}  Bd7 {[%clk 0:00:34]} 16. e4 {[%clk 0:00:52]}  h4 {[%clk 0:00:31]} 17. Nf5 {[%clk 0:00:52]}  Bxf5 {[%clk 0:00:30]} 18. exf5 {[%clk 0:00:53]}  Qd7 {[%clk 0:00:31]} 19. Kh1 {[%clk 0:00:25]}  Qxf5 {[%clk 0:00:31]} 20. Nc3 {[%clk 0:00:21]}  Rxg2 {[%clk 0:00:29]} 21. Kxg2 {[%clk 0:00:11]}  Rg8+ {[%clk 0:00:28]} 22. Kh2 {[%clk 0:00:12]}  e4+ {[%clk 0:00:28]} 23. f4 {[%clk 0:00:12]}  exf3+ {[%clk 0:00:28]} 24. Kh1 {[%clk 0:00:11]}  Qxh3# {[%clk 0:00:28]} 0-1


[Site "https://www.chess.com"]

[Event "Titled Tuesday Blitz July 11 Early 2023"]
[White "Bogaudinov, Rushan"]
[Black "Manukian, Artak"]
[WhiteFideId "4129288"]
[BlackFideId "13301373"]
[WhiteElo "2346"]
[BlackElo "2475"]
[Result "1-0"]
[Round "10"]
[TimeControl "180+2"]
[Date "2023.07.11"]
[WhiteClock "0:00:18"]
[BlackClock "0:00:00"]
[Board "121"]

1. d4 {[%clk 0:02:31]}  d5 {[%clk 0:02:59]} 2. Nf3 {[%clk 0:02:31]}  Nf6 {[%clk 0:02:58]} 3. e3 {[%clk 0:02:32]}  Bg4 {[%clk 0:02:57]} 4. Be2 {[%clk 0:02:33]}  e6 {[%clk 0:02:57]} 5. h3 {[%clk 0:02:33]}  Bh5 {[%clk 0:02:57]} 6. O-O {[%clk 0:02:31]}  c5 {[%clk 0:02:57]} 7. a3 {[%clk 0:02:30]}  Nc6 {[%clk 0:02:57]} 8. dxc5 {[%clk 0:02:30]}  Bxc5 {[%clk 0:02:57]} 9. b4 {[%clk 0:02:31]}  Be7 {[%clk 0:02:57]} 10. Bb2 {[%clk 0:02:31]}  O-O {[%clk 0:02:56]} 11. Nbd2 {[%clk 0:02:31]}  Rc8 {[%clk 0:02:56]} 12. c4 {[%clk 0:02:31]}  Bg6 {[%clk 0:02:49]} 13. Qb3 {[%clk 0:02:30]}  a5 {[%clk 0:02:36]} 14. b5 {[%clk 0:02:25]}  Nb8 {[%clk 0:02:32]} 15. a4 {[%clk 0:02:25]}  Nbd7 {[%clk 0:02:31]} 16. cxd5 {[%clk 0:02:24]}  Bc2 {[%clk 0:02:21]} 17. Qa2 {[%clk 0:02:22]}  Nxd5 {[%clk 0:02:20]} 18. Rac1 {[%clk 0:02:19]}  Nb4 {[%clk 0:02:20]} 19. Qa1 {[%clk 0:02:19]}  Bf6 {[%clk 0:02:18]} 20. Nd4 {[%clk 0:02:14]}  Bg6 {[%clk 0:02:13]} 21. Bf3 {[%clk 0:02:13]}  Rxc1 {[%clk 0:01:57]} 22. Rxc1 {[%clk 0:02:12]}  Nd3 {[%clk 0:01:57]} 23. Rd1 {[%clk 0:02:05]}  N7c5 {[%clk 0:01:44]} 24. Bc3 {[%clk 0:01:56]}  b6 {[%clk 0:01:36]} 25. Nc6 {[%clk 0:01:54]}  Bxc3 {[%clk 0:01:31]} 26. Qxc3 {[%clk 0:01:54]}  Qf6 {[%clk 0:01:27]} 27. Qxf6 {[%clk 0:01:52]}  gxf6 {[%clk 0:01:28]} 28. Ra1 {[%clk 0:01:49]}  Ne5 {[%clk 0:01:10]} 29. Nxe5 {[%clk 0:01:27]}  fxe5 {[%clk 0:01:11]} 30. Nc4 {[%clk 0:01:27]}  e4 {[%clk 0:01:11]} 31. Be2 {[%clk 0:01:22]}  Rb8 {[%clk 0:01:07]} 32. g4 {[%clk 0:01:19]}  Kf8 {[%clk 0:01:01]} 33. h4 {[%clk 0:01:19]}  h6 {[%clk 0:00:57]} 34. h5 {[%clk 0:01:18]}  Bh7 {[%clk 0:00:54]} 35. Kg2 {[%clk 0:01:18]}  Ke7 {[%clk 0:00:48]} 36. Kg3 {[%clk 0:01:18]}  f5 {[%clk 0:00:44]} 37. Kh4 {[%clk 0:01:14]}  fxg4 {[%clk 0:00:38]} 38. Bxg4 {[%clk 0:01:14]}  Bg8 {[%clk 0:00:32]} 39. Bd1 {[%clk 0:01:01]}  Nd7 {[%clk 0:00:27]} 40. Bc2 {[%clk 0:00:59]}  Rc8 {[%clk 0:00:21]} 41. Bb3 {[%clk 0:00:59]}  e5 {[%clk 0:00:15]} 42. Rc1 {[%clk 0:00:49]}  Be6 {[%clk 0:00:14]} 43. Kg3 {[%clk 0:00:42]}  Nc5 {[%clk 0:00:10]} 44. Nd2 {[%clk 0:00:29]}  Rg8+ {[%clk 0:00:06]} 45. Kh2 {[%clk 0:00:28]}  Bxb3 {[%clk 0:00:06]} 46. Nxb3 {[%clk 0:00:28]}  Nxb3 {[%clk 0:00:06]} 47. Rc6 {[%clk 0:00:28]}  Nc5 {[%clk 0:00:02]} 48. Rxb6 {[%clk 0:00:26]}  Nxa4 {[%clk 0:00:02]} 49. Rxh6 {[%clk 0:00:26]}  Nc3 {[%clk 0:00:03]} 50. Ra6 {[%clk 0:00:23]}  a4 {[%clk 0:00:03]} 51. b6 {[%clk 0:00:20]}  Rh8 {[%clk 0:00:00]} 52. Kg3 {[%clk 0:00:18]} 1-0


[Site "https://www.chess.com"]

[Event "Titled Tuesday Blitz July 11 Early 2023"]
[White "Wang2007"]
[Black "Rodriguez Fontecha, Marcos"]
[BlackFideId "2256576"]
[WhiteElo "2308"]
[BlackElo "2437"]
[Result "1-0"]
[Round "10"]
[TimeControl "180+2"]
[Date "2023.07.11"]
[WhiteClock "0:01:36"]
[BlackClock "0:00:19"]
[Board "122"]

1. d4 {[%clk 0:02:58]}  Nf6 {[%clk 0:02:55]} 2. c4 {[%clk 0:02:58]}  c5 {[%clk 0:02:56]} 3. d5 {[%clk 0:02:58]}  b5 {[%clk 0:02:56]} 4. Qc2 {[%clk 0:02:57]}  bxc4 {[%clk 0:02:53]} 5. e4 {[%clk 0:02:57]}  d6 {[%clk 0:02:53]} 6. Bxc4 {[%clk 0:02:56]}  g6 {[%clk 0:02:51]} 7. Nf3 {[%clk 0:02:57]}  Bg7 {[%clk 0:02:51]} 8. Bd2 {[%clk 0:02:56]}  O-O {[%clk 0:02:52]} 9. Bc3 {[%clk 0:02:56]}  Ba6 {[%clk 0:02:46]} 10. Nbd2 {[%clk 0:02:55]}  Bxc4 {[%clk 0:02:44]} 11. Nxc4 {[%clk 0:02:56]}  Nbd7 {[%clk 0:02:44]} 12. O-O {[%clk 0:02:56]}  Rb8 {[%clk 0:02:27]} 13. Rad1 {[%clk 0:02:46]}  Ng4 {[%clk 0:02:14]} 14. Bxg7 {[%clk 0:02:43]}  Kxg7 {[%clk 0:02:15]} 15. Qc3+ {[%clk 0:02:42]}  Kg8 {[%clk 0:02:13]} 16. h3 {[%clk 0:02:39]}  Ngf6 {[%clk 0:02:09]} 17. e5 {[%clk 0:02:39]}  dxe5 {[%clk 0:02:08]} 18. Nfxe5 {[%clk 0:02:40]}  Nxe5 {[%clk 0:02:08]} 19. Nxe5 {[%clk 0:02:38]}  Qb6 {[%clk 0:01:57]} 20. b3 {[%clk 0:02:13]}  Rbc8 {[%clk 0:01:50]} 21. Rfe1 {[%clk 0:02:05]}  Rfd8 {[%clk 0:01:49]} 22. Nc4 {[%clk 0:02:01]}  Qc7 {[%clk 0:01:35]} 23. d6 {[%clk 0:02:00]}  Qc6 {[%clk 0:01:28]} 24. dxe7 {[%clk 0:01:52]}  Rxd1 {[%clk 0:01:27]} 25. Rxd1 {[%clk 0:01:52]}  Ne8 {[%clk 0:00:49]} 26. Rd8 {[%clk 0:01:49]}  Rc7 {[%clk 0:00:35]} 27. Qe5 {[%clk 0:01:39]}  f6 {[%clk 0:00:19]} 28. Rxe8+ {[%clk 0:01:36]} 1-0


[Site "https://www.chess.com"]

[Event "Titled Tuesday Blitz July 11 Early 2023"]
[White "Magallanes, Rey Jomar"]
[Black "Avila Jimenez, Xavier"]
[WhiteFideId "5205948"]
[BlackFideId "2210533"]
[WhiteElo "2273"]
[BlackElo "2419"]
[Result "1-0"]
[Round "10"]
[TimeControl "180+2"]
[Date "2023.07.11"]
[WhiteClock "0:01:14"]
[BlackClock "0:00:55"]
[Board "124"]

1. e4 {[%clk 0:03:00]}  d5 {[%clk 0:02:59]} 2. exd5 {[%clk 0:03:00]}  Qxd5 {[%clk 0:03:00]} 3. Nf3 {[%clk 0:03:00]}  Bg4 {[%clk 0:03:00]} 4. Be2 {[%clk 0:03:00]}  Nf6 {[%clk 0:03:00]} 5. d4 {[%clk 0:03:00]}  Nc6 {[%clk 0:03:00]} 6. c4 {[%clk 0:02:59]}  Qf5 {[%clk 0:03:01]} 7. Nc3 {[%clk 0:02:59]}  O-O-O {[%clk 0:03:01]} 8. Be3 {[%clk 0:02:59]}  e6 {[%clk 0:02:58]} 9. h3 {[%clk 0:02:58]}  Bxf3 {[%clk 0:02:57]} 10. Bxf3 {[%clk 0:02:58]}  g5 {[%clk 0:02:31]} 11. Bxc6 {[%clk 0:02:56]}  bxc6 {[%clk 0:02:31]} 12. Qa4 {[%clk 0:02:55]}  Kd7 {[%clk 0:02:29]} 13. O-O-O {[%clk 0:02:53]}  Rb8 {[%clk 0:02:29]} 14. d5 {[%clk 0:02:53]}  exd5 {[%clk 0:02:22]} 15. cxd5 {[%clk 0:02:52]}  Bd6 {[%clk 0:02:14]} 16. dxc6+ {[%clk 0:02:46]}  Ke7 {[%clk 0:02:08]} 17. g4 {[%clk 0:02:38]}  Qf3 {[%clk 0:02:00]} 18. Bxg5 {[%clk 0:02:35]}  Rb4 {[%clk 0:01:53]} 19. Qxa7 {[%clk 0:02:16]}  Bf4+ {[%clk 0:01:38]} 20. Bxf4 {[%clk 0:02:14]}  Qxf4+ {[%clk 0:01:38]} 21. Rd2 {[%clk 0:02:12]}  Rhb8 {[%clk 0:01:34]} 22. Qc5+ {[%clk 0:02:09]}  Ke8 {[%clk 0:01:28]} 23. Re1+ {[%clk 0:02:08]}  Ne4 {[%clk 0:01:27]} 24. Nxe4 {[%clk 0:01:41]}  Rxe4 {[%clk 0:01:16]} 25. Rxe4+ {[%clk 0:01:41]}  Qxe4 {[%clk 0:01:16]} 26. Qe3 {[%clk 0:01:41]}  Qxe3 {[%clk 0:01:12]} 27. fxe3 {[%clk 0:01:42]}  Rb6 {[%clk 0:01:12]} 28. Rc2 {[%clk 0:01:37]}  Ke7 {[%clk 0:01:12]} 29. b3 {[%clk 0:01:33]}  Kd6 {[%clk 0:01:12]} 30. Kb2 {[%clk 0:01:33]}  Ke5 {[%clk 0:01:12]} 31. Rc4 {[%clk 0:01:32]}  Rb8 {[%clk 0:01:08]} 32. Rd4 {[%clk 0:01:27]}  Rb6 {[%clk 0:01:08]} 33. Rd7 {[%clk 0:01:27]}  Rxc6 {[%clk 0:01:06]} 34. Rxf7 {[%clk 0:01:28]}  h6 {[%clk 0:01:07]} 35. Rf4 {[%clk 0:01:25]}  Rd6 {[%clk 0:01:06]} 36. Rc4 {[%clk 0:01:20]}  Rd2+ {[%clk 0:01:00]} 37. Rc2 {[%clk 0:01:15]}  Rd3 {[%clk 0:00:55]} 38. Rxc7 {[%clk 0:01:14]} 1-0


[Site "https://www.chess.com"]

[Event "Titled Tuesday Blitz July 11 Early 2023"]
[White "Dwilewicz, Katarzyna"]
[Black "Bobkov, Vadim"]
[WhiteFideId "1148486"]
[BlackFideId "34110876"]
[WhiteElo "2281"]
[BlackElo "2584"]
[Result "1-0"]
[Round "10"]
[TimeControl "180+2"]
[Date "2023.07.11"]
[WhiteClock "0:00:52"]
[BlackClock "0:00:00"]
[Board "128"]

1. e4 {[%clk 0:03:00]}  c5 {[%clk 0:02:52]} 2. Nf3 {[%clk 0:02:59]}  g6 {[%clk 0:02:44]} 3. c3 {[%clk 0:02:58]}  Bg7 {[%clk 0:02:37]} 4. d4 {[%clk 0:02:58]}  cxd4 {[%clk 0:02:37]} 5. cxd4 {[%clk 0:02:59]}  d5 {[%clk 0:02:37]} 6. e5 {[%clk 0:02:57]}  a6 {[%clk 0:02:36]} 7. h3 {[%clk 0:02:57]}  Nc6 {[%clk 0:02:35]} 8. Nc3 {[%clk 0:02:58]}  f6 {[%clk 0:02:33]} 9. exf6 {[%clk 0:02:55]}  Nxf6 {[%clk 0:02:28]} 10. Bg5 {[%clk 0:02:54]}  O-O {[%clk 0:02:10]} 11. Bd3 {[%clk 0:02:54]}  Qd6 {[%clk 0:02:06]} 12. O-O {[%clk 0:02:53]}  Nh5 {[%clk 0:02:06]} 13. Re1 {[%clk 0:02:47]}  e6 {[%clk 0:01:34]} 14. Bf1 {[%clk 0:02:39]}  Bd7 {[%clk 0:01:20]} 15. Rc1 {[%clk 0:02:39]}  Rf7 {[%clk 0:01:04]} 16. Na4 {[%clk 0:02:36]}  Raf8 {[%clk 0:01:01]} 17. Be2 {[%clk 0:02:26]}  Nf4 {[%clk 0:00:56]} 18. Bxf4 {[%clk 0:02:23]}  Rxf4 {[%clk 0:00:50]} 19. Nc5 {[%clk 0:02:14]}  Nxd4 {[%clk 0:00:46]} 20. Nxd7 {[%clk 0:02:13]}  Qxd7 {[%clk 0:00:38]} 21. Nxd4 {[%clk 0:02:12]}  Bxd4 {[%clk 0:00:37]} 22. Bf3 {[%clk 0:02:12]}  Rxf3 {[%clk 0:00:26]} 23. gxf3 {[%clk 0:02:12]}  e5 {[%clk 0:00:26]} 24. Kg2 {[%clk 0:02:03]}  Qf5 {[%clk 0:00:19]} 25. Qb3 {[%clk 0:02:01]}  Qg5+ {[%clk 0:00:13]} 26. Kf1 {[%clk 0:01:43]}  e4 {[%clk 0:00:09]} 27. Rcd1 {[%clk 0:01:31]}  Bxf2 {[%clk 0:00:05]} 28. Qxd5+ {[%clk 0:01:14]}  Qxd5 {[%clk 0:00:05]} 29. Rxd5 {[%clk 0:01:15]}  Bxe1 {[%clk 0:00:05]} 30. Kxe1 {[%clk 0:01:14]}  exf3 {[%clk 0:00:05]} 31. Kf2 {[%clk 0:01:08]}  Kg7 {[%clk 0:00:04]} 32. b4 {[%clk 0:01:01]}  Rf7 {[%clk 0:00:04]} 33. a4 {[%clk 0:01:01]}  h6 {[%clk 0:00:04]} 34. h4 {[%clk 0:01:02]}  Kh7 {[%clk 0:00:00]} 35. Rd6 {[%clk 0:00:52]} 1-0


[Site "https://www.chess.com"]